[Event "Targo Mures Open 2019"]
[Site "Targo Mures"]
[Date "2019.10.20"]
[Round "7.9"]
[White "Daianu, Cristian-Clement"]
[Black "Botea, David-Alexandru"]
[Result "1-0"]
[ECO "C55"]
[WhiteElo "2206"]
[BlackElo "1958"]
[Annotator "NA"]
[PlyCount "75"]
[EventDate "2019.03.02"]
[EventType "swiss"]
[EventCountry "ROU"]
[SourceTitle "playchess.com"]
[Source "ChessBase"]
[SourceQuality "1"]
[TimeControl "5400+30"]

1. e4 {[%emt 0:00:00]} e5 {[%emt 0:00:00]} 2. Nf3 {[%emt 0:00:00]} Nc6 {[%emt 0:00:00]} 3. Bc4 {[%emt 0:00:00]} Nf6 {[%emt 0:00:00]} 4. d3 {[%emt 0:00:13]} Be7 {[%emt 0:00:15]} 5. O-O {[%emt 0:01:22]} O-O {[%emt 0:00:09]} 6. c3 {[%emt 0:01:05]} d5 {[%emt 0:00:28]} 7. exd5 {[%emt 0:00:28]} Nxd5 {[%emt 0:00:03]} 8. Re1 {[%emt 0:03:00]} Bg4 {[%emt 0:00:13] C55: Two Knights: 4 d3, 4 d4 exd4 5 e5 and Max Lange Attack} 9. Nbd2 {[%emt 0:01:31]} Nb6 {[%emt 0:01:28]} 10. Bb5 {[%emt 0:03:08]} f6 {[%emt 0:00:22]} 11. h3 {[%emt 0:02:53]} Bh5 {[%emt 0:04:11]} 12. Ne4 {[%emt 0:05:09]} Qd5 {[%emt 0:06:53]} 13. c4 {[%emt 0:09:29]} (13. Qb3 Bf7 14. Qxd5 Bxd5 15. Be3 Rfd8 16. Ned2 a6 17. Bxc6 Bxc6 18. Bxb6 cxb6 {½-½ (37) Jakubowski,K (2518)-Bobras,P (2488) Katowice 2019}) 13... Qd7 {[%emt 0:00:44]} 14. Nxe5 $146 {[%emt 0:08:16]} ({Predecessor:} 14. c5 Bxf3 15. gxf3 Nd5 16. Qb3 Kh8 17. Kg2 Rfd8 18. Bd2 {½-½ (69) Nunez Miranda,A (2120)-Quevedo Marin,M (2231) Madrid 2016}) 14... Nxe5 {[%emt 0:12:21]} 15. Bxd7 {[%emt 0:01:44]} Bxd1 {[%emt 0:00:02]} 16. Be6+ {[%emt 0:00:07]} Kh8 {[%emt 0:00:09]} 17. Rxd1 {[%emt 0:00:04]} Rad8 {[%emt 0:00:22]} 18. c5 {[%emt 0:08:47]} Nd5 {[%emt 0:05:29]} 19. d4 {[%emt 0:10:38]} Ng6 {[%emt 0:06:27]} 20. Bxd5 {[%emt 0:06:28]} Rxd5 {[%emt 0:00:05]} 21. Nc3 $16 {[%emt 0:00:19]} Rd7 {[%emt 0:00:48]} 22. Be3 {[%emt 0:00:06]} c6 {[%emt 0:00:22]} 23. d5 {[%emt 0:00:14]} cxd5 {[%emt 0:00:13]} 24. Rxd5 {[%emt 0:00:08]} Ne5 {[%emt 0:09:33]} 25. b4 {[%emt 0:06:46]} Rxd5 {[%emt 0:01:08]} 26. Nxd5 {[%emt 0:00:04]} Bd8 {[%emt 0:00:10]} 27. Rc1 {[%emt 0:02:57]} Rf7 {[%emt 0:00:45]} 28. b5 {[%emt 0:02:15]} Rd7 {[%emt 0:00:19]} 29. Nb4 {[%emt 0:01:32]} Ba5 {[%emt 0:01:24]} 30. c6 {[%emt 0:01:27]} bxc6 {[%emt 0:00:33]} 31. Nxc6 {[%emt 0:00:05]} Nxc6 {[%emt 0:01:07]} 32. Rxc6 {[%emt 0:00:10]} Kg8 {[%emt 0:00:26]} 33. Ra6 {[%emt 0:00:12]} Bc7 {[%emt 0:00:08]} 34. Kf1 {[%emt 0:01:56]} Bb8 {[%emt 0:01:13]} 35. b6 {[%emt 0:00:26]} axb6 {[%emt 0:00:06]} 36. Ra8 {[%emt 0:00:03]} Rd8 {[%emt 0:00:20]} 37. Bxb6 {[%emt 0:00:04]} Rf8 {[%emt 0:00:15]} 38. a4 {[%emt 0:00:04]} 1-0

[Event "Targo Mures Open 2019"]
[Site "Targo Mures"]
[Date "2019.10.20"]
[Round "7.10"]
[White "Juncu, Nicolae"]
[Black "Titu, Maiorescu-Dorin"]
[Result "0-1"]
[ECO "A45"]
[WhiteElo "1857"]
[BlackElo "2147"]
[Annotator "NA"]
[PlyCount "107"]
[EventDate "2019.03.02"]
[EventType "swiss"]
[EventCountry "ROU"]
[SourceTitle "playchess.com"]
[Source "ChessBase"]
[SourceQuality "1"]
[TimeControl "5400+30"]

1. d4 {[%emt 0:00:00]} Nf6 {[%emt 0:00:00]} 2. c3 {[%emt 0:00:00]} d5 {[%emt 0:00:09]} 3. Bf4 {[%emt 0:00:00]} g6 {[%emt 0:06:58]} 4. h3 {[%emt 0:00:19]} Bg7 {[%emt 0:00:09]} 5. Nf3 {[%emt 0:00:03]} O-O {[%emt 0:00:15]} 6. e3 {[%emt 0:00:11]} b6 {[%emt 0:08:18]} 7. a4 {[%emt 0:00:48] D02: 1 d4 d5 2 Nf3 sidelines, including 2...Nf6 3 g3 and 2...Nf6 3 Bf4} a6 {[%emt 0:05:15]} 8. Bd3 {[%emt 0:00:20]} Bb7 {[%emt 0:00:11]} 9. Nbd2 {[%emt 0:00:59]} Nbd7 {[%emt 0:01:08]} 10. O-O {[%emt 0:00:39]} Ne4 {[%emt 0:07:39]} 11. Qc2 {[%emt 0:01:07]} Nxd2 {[%emt 0:00:22]} 12. Qxd2 {[%emt 0:00:32]} f6 $146 {[%emt 0:01:30]} ({Predecessor:} 12... c5 13. Bh2 e6 14. b4 c4 {0-1 (31) Boe Olsen,M (2337)-Glud,J (2486) Silkeborg 2008}) 13. Bc2 {[%emt 0:05:27]} e6 {[%emt 0:11:52]} 14. Rfe1 {[%emt 0:01:47]} f5 {[%emt 0:00:57]} 15. Bd3 {[%emt 0:13:03]} h6 {[%emt 0:07:49]} 16. Be5 {[%emt 0:16:00]} Bxe5 {[%emt 0:07:57]} 17. Nxe5 {[%emt 0:05:55]} Nxe5 {[%emt 0:00:09]} 18. dxe5 {[%emt 0:00:02]} a5 {[%emt 0:00:34]} 19. g3 {[%emt 0:02:54]} c5 {[%emt 0:03:24]} 20. Bf1 {[%emt 0:01:17]} Kg7 {[%emt 0:00:26]} 21. Bg2 {[%emt 0:01:20]} Qc7 $11 {[%emt 0:00:14]} 22. f4 {[%emt 0:00:07]} Rfd8 {[%emt 0:01:27]} 23. Qf2 {[%emt 0:02:36]} Rd7 {[%emt 0:00:57]} 24. Red1 {[%emt 0:02:03]} Ba6 {[%emt 0:01:05]} 25. g4 {[%emt 0:04:02]} Rf8 {[%emt 0:06:29]} 26. Qg3 {[%emt 0:08:05]} Kh7 {[%emt 0:01:55]} 27. g5 {[%emt 0:01:06]} h5 {[%emt 0:00:39]} 28. Bf3 {[%emt 0:00:08]} Kg7 {[%emt 0:00:23]} 29. Qf2 {[%emt 0:00:55]} Rfd8 {[%emt 0:00:48]} 30. Qc2 {[%emt 0:00:32]} Bb7 {[%emt 0:00:49]} 31. Bg2 {[%emt 0:08:54]} Kf7 {[%emt 0:01:00]} 32. h4 {[%emt 0:01:10]} Qb8 {[%emt 0:00:57]} 33. Qf2 {[%emt 0:02:26]} Ba6 {[%emt 0:00:20]} 34. Rd2 {[%emt 0:01:03]} Qc7 {[%emt 0:00:46]} 35. Rad1 {[%emt 0:01:54]} Bc4 {[%emt 0:00:12]} 36. Ra1 {[%emt 0:01:13]} Bb3 {[%emt 0:00:20]} 37. Bf1 {[%emt 0:01:00]} c4 {[%emt 0:00:19]} 38. Be2 {[%emt 0:00:16]} Qc6 {[%emt 0:00:20]} 39. Bd1 {[%emt 0:00:08]} Bxd1 {[%emt 0:00:15]} 40. Rdxd1 {[%emt 0:00:06]} Rb7 {[%emt 0:00:27]} 41. Qc2 {[%emt 0:06:32]} Rdb8 {[%emt 0:00:25]} 42. Ra2 {[%emt 0:03:09]} b5 {[%emt 0:00:26]} 43. axb5 {[%emt 0:00:21]} Rxb5 {[%emt 0:00:13]} 44. Qa4 {[%emt 0:03:39]} Qc5 {[%emt 0:03:33]} 45. Rd4 {[%emt 0:02:07]} R8b7 {[%emt 0:03:11]} 46. Kf2 {[%emt 0:04:57]} Rxb2+ {[%emt 0:02:06]} 47. Rd2 {[%emt 0:00:01]} Rxd2+ {[%emt 0:00:40]} 48. Rxd2 {[%emt 0:00:01]} Rb5 {[%emt 0:01:04]} 49. Kf3 {[%emt 0:01:23]} Ke7 {[%emt 0:02:06]} 50. Ke2 {[%emt 0:00:47]} Rb3 {[%emt 0:00:51]} 51. Qa1 {[%emt 0:00:28]} a4 {[%emt 0:01:16]} 52. Ra2 {[%emt 0:00:44]} a3 {[%emt 0:00:08]} 53. Qc1 {[%emt 0:00:16]} Qa5 {[%emt 0:00:33]} 54. Ke1 0-1

[Event "Targo Mures Open 2019"]
[Site "Targo Mures"]
[Date "2019.10.20"]
[Round "7.11"]
[White "Illes, Sandor-Ferenc"]
[Black "Paraschiv, Paul-Alexandru"]
[Result "1/2-1/2"]
[ECO "C18"]
[WhiteElo "1905"]
[BlackElo "2023"]
[Annotator "NA"]
[PlyCount "160"]
[EventDate "2019.03.02"]
[EventType "swiss"]
[EventCountry "ROU"]
[SourceTitle "playchess.com"]
[Source "ChessBase"]
[SourceQuality "1"]
[TimeControl "5400+30"]

1. e4 {[%emt 0:00:00]} e6 {[%emt 0:00:00]} 2. d4 {[%emt 0:00:10]} d5 {[%emt 0:00:00]} 3. Nc3 {[%emt 0:00:17]} Bb4 {[%emt 0:00:00]} 4. e5 {[%emt 0:00:37]} c5 {[%emt 0:00:00]} 5. a3 {[%emt 0:00:25]} Bxc3+ {[%emt 0:00:00]} 6. bxc3 {[%emt 0:00:25]} Qa5 {[%emt 0:00:00]} 7. Bd2 {[%emt 0:05:49]} Qa4 {[%emt 0:00:08]} 8. Be3 {[%emt 0:06:18]} c4 {[%emt 0:02:07]} 9. Ne2 {[%emt 0:01:57]} Ne7 {[%emt 0:00:05]} 10. Ng3 {[%emt 0:00:37]} Nbc6 {[%emt 0:00:59]} 11. Qd2 {[%emt 0:04:34]} Bd7 {[%emt 0:00:08]} 12. Nh5 {[%emt 0:03:25]} Rg8 {[%emt 0:00:08]} 13. g3 {[%emt 0:01:49]} O-O-O {[%emt 0:00:12]} 14. Bh3 {[%emt 0:00:57]} Rdf8 {[%emt 0:03:02]} 15. O-O {[%emt 0:05:04]} Qa5 {[%emt 0:00:45]} 16. Qe1 {[%emt 0:11:33]} a6 {[%emt 0:01:08]} 17. Bd2 {[%emt 0:00:50]} Na7 {[%emt 0:01:57]} 18. f3 {[%emt 0:04:48]} Ba4 {[%emt 0:01:09]} 19. Rf2 {[%emt 0:04:06]} Nb5 {[%emt 0:02:23]} 20. Ra2 {[%emt 0:02:12]} Kb8 {[%emt 0:05:37]} 21. Kh1 {[%emt 0:05:37]} Nc7 {[%emt 0:00:13]} 22. Qb1 {[%emt 0:04:02]} Nc6 {[%emt 0:01:52]} 23. Nf4 {[%emt 0:00:36]} Nb5 {[%emt 0:04:22]} 24. Qe1 {[%emt 0:01:39]} Ka7 {[%emt 0:01:55]} 25. Ng2 {[%emt 0:06:56]} Qc7 {[%emt 0:01:33]} 26. Ne3 {[%emt 0:01:25]} Qe7 {[%emt 0:00:12]} 27. Bc1 {[%emt 0:00:52]} Nc7 {[%emt 0:01:04]} 28. Nd1 {[%emt 0:01:05]} Qd7 {[%emt 0:02:17]} 29. f4 {[%emt 0:05:41]} Ne7 {[%emt 0:00:30]} 30. Ne3 {[%emt 0:00:34]} Nf5 {[%emt 0:01:02]} 31. Qe2 {[%emt 0:02:18]} Nxe3 {[%emt 0:00:14]} 32. Qxe3 {[%emt 0:00:30]} g6 {[%emt 0:00:17]} 33. Ra1 {[%emt 0:01:20]} h5 {[%emt 0:00:34]} 34. Bb2 {[%emt 0:00:26]} Qe7 {[%emt 0:01:16]} 35. Re1 {[%emt 0:02:06]} Rc8 {[%emt 0:00:32]} 36. Bg2 {[%emt 0:02:08]} Nb5 {[%emt 0:00:05]} 37. Ra1 {[%emt 0:00:57]} Rc6 {[%emt 0:00:04]} 38. Qd2 {[%emt 0:00:51]} Rb6 {[%emt 0:00:09]} 39. Rff1 {[%emt 0:00:34]} Rh8 {[%emt 0:00:59]} 40. h4 {[%emt 0:00:16]} Ka8 {[%emt 0:00:58]} 41. Rab1 {[%emt 0:02:52]} Rc8 {[%emt 0:00:42]} 42. Bc1 {[%emt 0:00:59]} a5 {[%emt 0:00:21]} 43. Bb2 {[%emt 0:02:24]} Rcc6 {[%emt 0:00:17]} 44. Qc1 {[%emt 0:01:09]} Nc7 {[%emt 0:00:52]} 45. Ra1 {[%emt 0:01:45]} Rb5 {[%emt 0:00:44]} 46. Ra2 {[%emt 0:00:32]} Rcb6 {[%emt 0:00:04]} 47. Re1 {[%emt 0:00:23]} Ne8 {[%emt 0:00:15]} 48. Bh3 {[%emt 0:00:13]} Ng7 {[%emt 0:00:27]} 49. Kg2 {[%emt 0:00:20]} Kb8 {[%emt 0:00:26]} 50. Kf3 {[%emt 0:00:09]} Kc7 {[%emt 0:00:26]} 51. Rg1 {[%emt 0:00:55]} Kd8 {[%emt 0:00:31]} 52. Re1 {[%emt 0:00:32]} Ke8 {[%emt 0:00:17]} 53. Rg1 {[%emt 0:00:02]} Kf8 {[%emt 0:00:17]} 54. Re1 {[%emt 0:00:01]} Kg8 {[%emt 0:00:06]} 55. Rg1 {[%emt 0:00:01]} Kh7 {[%emt 0:00:05]} 56. Re1 {[%emt 0:00:06]} Nf5 {[%emt 0:00:49]} 57. Bxf5 {[%emt 0:00:30]} gxf5 {[%emt 0:00:01]} 58. Kf2 {[%emt 0:00:18]} Qf8 {[%emt 0:00:24]} 59. Rg1 {[%emt 0:00:45]} Qg7 {[%emt 0:00:12]} 60. Ba1 {[%emt 0:00:42]} Kh6 {[%emt 0:01:49]} 61. Rb2 {[%emt 0:01:39]} Rxb2 {[%emt 0:00:10]} 62. Bxb2 {[%emt 0:00:04]} Qg4 {[%emt 0:00:30]} 63. Rg2 {[%emt 0:00:16]} Qg8 {[%emt 0:02:08]} 64. Ke3 {[%emt 0:00:10]} Qe8 {[%emt 0:00:20]} 65. Kd2 {[%emt 0:00:18]} Qb5 {[%emt 0:00:44]} 66. Ba1 {[%emt 0:00:13]} Qb1 {[%emt 0:00:03]} 67. Rg1 {[%emt 0:00:08]} Qa2 {[%emt 0:00:02]} 68. Re1 {[%emt 0:00:26]} Rb3 {[%emt 0:02:15]} 69. Rg1 {[%emt 0:00:51]} Bc6 {[%emt 0:00:24]} 70. Re1 {[%emt 0:01:25]} b5 {[%emt 0:01:48]} 71. Rd1 {[%emt 0:00:10]} b4 {[%emt 0:01:19]} 72. axb4 {[%emt 0:02:08]} axb4 {[%emt 0:00:21]} 73. Ke1 {[%emt 0:02:27]} Ra3 {[%emt 0:01:21]} 74. Bb2 {[%emt 0:00:16]} Ra8 {[%emt 0:00:31]} 75. cxb4 {[%emt 0:00:21]} c3 {[%emt 0:00:44]} 76. Bxc3 {[%emt 0:00:34]} Qc4 {[%emt 0:00:10]} 77. Qe3 {[%emt 0:01:23]} Ra3 {[%emt 0:00:39]} 78. Kd2 {[%emt 0:00:02]} Qa6 {[%emt 0:01:31]} 79. Qe1 {[%emt 0:01:23]} Qc4 {[%emt 0:01:02]} 80. Qe3 {[%emt 0:00:10]} Qa6 {[%emt 0:02:35]} 1/2-1/2

[Event "Targo Mures Open 2019"]
[Site "Targo Mures"]
[Date "2019.10.20"]
[Round "7.12"]
[White "Ambru, Dan-Calin"]
[Black "Porfireanu, Serban"]
[Result "1/2-1/2"]
[ECO "E73"]
[WhiteElo "2004"]
[BlackElo "1811"]
[Annotator "NA"]
[PlyCount "73"]
[EventDate "2019.03.02"]
[EventType "swiss"]
[EventCountry "ROU"]
[SourceTitle "playchess.com"]
[Source "ChessBase"]
[SourceQuality "1"]
[TimeControl "5400+30"]

1. d4 {[%emt 0:00:00]} Nf6 {[%emt 0:00:04]} 2. c4 {[%emt 0:00:00]} d6 {[%emt 0:01:20]} 3. Nc3 {[%emt 0:00:28]} g6 {[%emt 0:00:06]} 4. e4 {[%emt 0:00:33]} Bg7 {[%emt 0:00:05]} 5. Be2 {[%emt 0:00:05]} O-O {[%emt 0:00:18]} 6. Be3 {[%emt 0:00:06]} e5 {[%emt 0:00:29]} 7. d5 {[%emt 0:00:06]} c6 {[%emt 0:07:28]} 8. Nf3 {[%emt 0:04:39]} cxd5 {[%emt 0:02:15]} 9. cxd5 {[%emt 0:00:13]} Bg4 {[%emt 0:00:57]} 10. O-O {[%emt 0:03:46]} Nbd7 {[%emt 0:06:14]} 11. Nd2 {[%emt 0:03:49]} Bxe2 {[%emt 0:00:54]} 12. Qxe2 {[%emt 0:00:07]} a6 {[%emt 0:00:54]} 13. a4 {[%emt 0:05:36]} Nh5 {[%emt 0:01:22]} 14. g3 {[%emt 0:00:52]} Qe8 {[%emt 0:03:02]} 15. Nc4 {[%emt 0:05:47]} Qe7 {[%emt 0:02:09]} 16. a5 {[%emt 0:04:58]} Rac8 {[%emt 0:03:06]} 17. Rac1 {[%emt 0:05:01]} Bh8 {[%emt 0:06:14]} 18. Na4 {[%emt 0:07:25]} Ng7 {[%emt 0:02:48]} 19. Ncb6 {[%emt 0:06:37]} Nxb6 {[%emt 0:01:31]} 20. Nxb6 {[%emt 0:00:08]} Rxc1 {[%emt 0:00:31]} 21. Rxc1 {[%emt 0:00:14]} f5 {[%emt 0:00:15]} 22. Bh6 {[%emt 0:02:57]} Re8 {[%emt 0:05:34]} 23. Rc4 {[%emt 0:08:14]} fxe4 {[%emt 0:07:12]} 24. Bxg7 {[%emt 0:00:29]} Bxg7 {[%emt 0:00:18]} 25. Qxe4 {[%emt 0:01:05]} Qf7 {[%emt 0:01:19]} 26. b4 {[%emt 0:03:17]} Rf8 {[%emt 0:01:36]} 27. Qc2 {[%emt 0:00:12]} Qf3 {[%emt 0:04:04]} 28. Rc3 {[%emt 0:05:12]} Qg4 {[%emt 0:00:28]} 29. Rc4 {[%emt 0:00:10]} Qf3 {[%emt 0:00:34]} 30. Rc8 {[%emt 0:08:45]} e4 {[%emt 0:01:53]} 31. Nd7 {[%emt 0:02:20]} Rxc8 {[%emt 0:02:07]} 32. Qxc8+ {[%emt 0:00:06]} Kf7 {[%emt 0:00:13]} 33. Qxb7 {[%emt 0:12:19]} Qd1+ {[%emt 0:00:12]} 34. Kg2 {[%emt 0:00:06]} Qf3+ {[%emt 0:00:12]} 35. Kh3 {[%emt 0:00:51]} Qh5+ {[%emt 0:00:10]} 36. Kg2 {[%emt 0:00:06]} Qf3+ {[%emt 0:00:07]} 37. Kg1 1/2-1/2